Workbook

Sheet 汇总表
A1: 招标控制价汇总表
A2: 工程名称：棒材加热炉蓄热烧嘴改造 | C2: 项目编号： | D2: 201099
A3: 序号 | B3: 项目名称 | C3: 编制金额（元） | D3: 备注
A4: 一 | B4: 安装部分 | C4: =C5 -> 84888.00
A5: 1 | B5: 棒材加热炉蓄热烧嘴改造 | C5: =安装工程!G31 -> 84888.00
A6: 二 | B6: 合计 | C6: =SUM(C4:C4) -> 84888.00 | D6: 不含税

Sheet 安装工程
A1: 全费用清单明细表
A2: 工程名称：棒材加热炉蓄热烧嘴改造 | G2: 项目编号：201099
A3: 序号 | B3: 项目名称 | C3: 项目特征及工作内容 | D3: 单位 | E3: 工程量 | F3: 不含税金额（元）
F4: 全费用综合单价 | G4: 合价 | H4: 其中:暂估价
B5: 机械拆除
A6: 1 | B6: 低压碳钢管 | C6: [项目特征] 1.材质:碳钢管 2.规格:DN200 [工作内容] 1.管道及管件拆除 | D6: m | E6: 30 | F6: 22 | G6: =F6*E6 -> 660
A7: 2 | B7: 低压碳钢管 | C7: [项目特征] 1.材质:碳钢管 2.规格:DN250 [工作内容] 1.管道及管件拆除 | D7: m | E7: 20 | F7: 28 | G7: =F7*E7 -> 560
A8: 3 | B8: 低压法兰阀门 | C8: [项目特征] 1.名称:阀门 2.型号、规格：DN200 [工作内容] 1.阀门及法兰拆除 | D8: 个 | E8: 32 | F8: 268 | G8: 8576
A9: 4 | B9: 低压法兰阀门 | C9: [项目特征] 1.名称:阀门 2.型号、规格：DN250 [工作内容] 1.阀门及法兰拆除 | D9: 个 | E9: 12 | F9: 391 | G9: 4692
A10: 5 | B10: 烧嘴 | C10: [项目特征] 1.名称:烧嘴 2.规格:DN150 [工作内容] 1.烧嘴拆除 | D10: 个 | E10: 12 | F10: 89 | G10: 1068
A11: 6 | B11: 钢平台拆除 | C11: [项目特征] 名称：钢平台 [工作内容] 1.拆除 | D11: t | E11: 2 | F11: 450 | G11: 900
B12: 机械安装
A13: 1 | B13: 低压碳钢管（材料利旧） | C13: [项目特征] 1.材质:焊接钢管 2.规格:DN200 3.连接形式、焊接方法:电弧焊 4.压力试验、吹扫与清洗设计要求:符合设计及规范要求 [工作内容] 1.安装 2.压力试验 3.吹扫、清洗 | D13: m | E13: 30 | F13: 55 | G13: 1650
A14: 2 | B14: 低压碳钢管（材料利旧） | C14: [项目特征] 1.材质:焊接钢管 2.规格:DN250 3.连接形式、焊接方法:电弧焊 4.压力试验、吹扫与清洗设计要求:符合设计及规范要求 [工作内容] 1.安装 2.压力试验 3.吹扫、清洗 | D14: m | E14: 20 | F14: 73 | G14: 1460
A15: 3 | B15: 低压法兰阀门（材料利旧） | C15: [项目特征] 1.名称:阀门 2.型号、规格:DN200 3.连接形式:法兰 [工作内容] 1.安装（含法兰） 2.操纵装置安装 3.壳体压力试验、解体检查及研磨 4.调试 | D15: 个 | E15: 32 | F15: 665 | G15: 21280
A16: 4 | B16: 低压法兰阀门（材料利旧） | C16: [项目特征] 1.名称:阀门 2.型号、规格:DN250 3.连接形式:法兰 [工作内容] 1.安装（含法兰） 2.操纵装置安装 3.壳体压力试验、解体检查及研磨 4.调试 | D16: 个 | E16: 12 | F16: 957 | G16: 11484
A17: 5 | B17: 烧嘴（甲供） | C17: [项目特征] 1.名称:烧嘴 2.规格:DN150 3.焊接方式:电弧焊 [工作内容] 1.安装 | D17: 个 | E17: 12 | F17: 189 | G17: 2268
A18: 6 | B18: 钢平台安装（材料利旧） | C18: [项目特征] 1.钢材品种:Q345 2.除锈标准:满足设计及规范要求 3.油漆品种及漆膜厚度:满足业主和设计及规范要求（此单价不包括防火漆或防火涂料） 4.其他：满足设计及规范要求 5.运输距离:投标人自行考虑 [工作内容] 1.拼装 2.安装 3.探伤 4.油漆 | D18: t | E18: 2 | F18: =1000+550 -> 1550 | G18: 3100
B19: 砌筑拆除
A20: 1 | B20: 加热炉烧嘴砖拆除 | C20: [项目特征] 1.名称:耐火预制件 [工作内容] 1.加热炉烧嘴砖拆除 | D20: m3 | E20: 5 | F20: =300*2.5 -> 750 | G20: 3750
A21: 2 | B21: 加热炉烧嘴蜂窝体拆除 | C21: [项目特征] 1.名称:莫来石 [工作内容] 1.加热炉烧嘴蜂窝体拆除 | D21: m3 | E21: 3.6 | F21: =300 -> 300 | G21: 1080
A22: 3 | B22: 浇筑料拆除 | C22: [项目特征] 1.名称:浇筑料 [工作内容] 1.耐火材料拆除 | D22: m3 | E22: 6 | F22: =300*2.3 -> 690 | G22: 4140
A23: 4 | B23: 耐火砖拆除 | C23: [项目特征] 1.名称:耐火砖 [工作内容] 1.耐火材料拆除 | D23: m3 | E23: 1.5 | F23: =300*2.5 -> 750 | G23: 1125
A24: 5 | B24: 耐火纤维拆除 | C24: [项目特征] 1.名称:耐火纤维 [工作内容] 1.耐火材料拆除 | D24: m3 | E24: 0.5 | F24: 200 | G24: 100
B25: 砌筑
A26: 1 | B26: 加热炉烧嘴砖（甲供） | C26: [项目特征] 1.名称:耐火预制件 [工作内容] 1.清理 2.放线、标记、立线杆 3.运输（含装卸码垛） 4.安装 5.质量自检 | D26: m3 | E26: 5 | F26: =500*2.5 -> 1250 | G26: =F26*E26 -> 6250
A27: 2 | B27: 加热炉烧嘴蜂窝体（甲供） | C27: [项目特征] 1.名称:莫来石 [工作内容] 1.清理 2.放线、标记、立线杆 3.运输（含装卸码垛） 4.安装 6.质量自检 | D27: m3 | E27: 3.6 | F27: =500*1 -> 500 | G27: =F27*E27 -> 1800
A28: 3 | B28: 浇筑料（甲供） | C28: [项目特征] 1.名称：浇注料 2.施工环境：高温、多尘、有限空间 3.安全文明施工及措施：包含完成该项工作的安全文明施工及措施等全部费用 [工作内容] 1.清理 2.锚固件安装 3.运输、搅拌、浇注、振捣 4.养护 5.支模、脱模 | D28: m3 | E28: 6 | F28: =500*2.3 -> 1150 | G28: =F28*E28 -> 6900
A29: 4 | B29: 耐火砖（甲供） | C29: [项目特征] 1.名称：高铝砖 2.施工环境：多尘、有限空间 3.安全文明施工及措施：包含完成该项工作的安全文明施工及措施等全部费用 [工作内容] 1.清理 2.放线、标记、立线杆 3.运输（含装卸码垛） 4.泥浆搅拌 5.演砖、砌砖、临时砖加工 6.质量自检 | D29: m3 | E29: 1.5 | F29: =500*2.5 -> 1250 | G29: =F29*E29 -> 1875
A30: 5 | B30: 耐火纤维（甲供） | C30: [[项目特征] 1.材质：纤维毡 2.安全文明施工及措施：包含完成该项工作的安全文明施工及措施等全部费用 [工作内容] 1.清理 2.运输 3.纤维毡铺贴 | D30: m3 | E30: 0.5 | F30: =1700*0.2 -> 340 | G30: =F30*E30 -> 170
A31: 合 计 | G31: =SUM(G6:G30) -> 84888

Sheet 甲供材料及设备一览表
A1: 甲供材料、设备一览表
A2: 工程名称：棒材加热炉蓄热烧嘴改造 | D2: 项目编号： 201099
A3: 序号 | B3: 设备/材料名称 | C3: 规格型号 | D3: 单位 | E3: 数量（含损耗） | F3: 备注
A4: 1 | B4: 加热炉烧嘴砖 | C4: 耐火预制件 | D4: T | E4: =5*2.8 -> 14
A5: 2 | B5: 烧嘴蜂窝体 | C5: 莫来石 | D5: T | E5: 11
A6: 3 | B6: 浇筑料 | D6: T | E6: 16
A7: 4 | B7: 耐火砖 | D7: T | E7: 4
A8: 5 | B8: 耐火纤维 | C8: DN150 | D8: m3 | E8: 0.52
A9: 6 | B9: 烧嘴 | D9: 个 | E9: 12
